bitfinex-derivatives/quotes_BNBF0:USTF0_20251225
["timestamp","ask_amount","ask_price","bid_price","bid_amount"]
[1766705979013,0.7079656,829.01,827.06,0.21009735]
[1766705979211,0.88483413,829.29,827.06,0.21009735]
[1766705979410,1.91394333,829.28,827.14,2.97389906]
[1766705979610,1.91394333,829.27,827.14,2.97389906]
[1766705979814,1.91394333,829.26,827.13,2.97389906]
[1766705980010,1.91394333,829.25,827.13,2.97389906]
[1766705980210,1.91394333,829.24,827.13,2.97389906]
[1766705980511,1.91394333,829.23,827.12,2.97389906]
[1766705980714,1.91394333,829.22,827.12,2.97389906]
[1766705980911,1.91394333,829.21,827.12,2.97389906]
[1766705981111,1.91394333,829.2,827.12,2.97389906]
[1766705981312,1.91394333,829.19,827.12,2.97389906]
[1766705981611,0.70660124,829.18,827.1,2.97389906]
[1766705981810,0.70660124,829.17,827.1,2.97389906]
[1766705982110,0.70660124,829.16,827.1,2.97389906]
[1766705982314,0.70660124,829.15,827.1,2.97389906]
[1766705982508,0.70660124,829.14,827.1,2.97389906]
[1766705982711,0.70660124,829.13,827.1,2.97389906]
[1766705983011,0.70660124,829.12,827.1,2.97389906]
[1766705983212,0.70660124,829.11,827.1,2.97389906]
[1766705983413,0.70660124,829.1,827.1,2.97389906]
[1766705983611,0.70660124,829.09,827.09,2.97389906]
[1766705983817,0.70660124,829.08,827.09,2.97389906]
[1766705984014,0.70660124,829.07,827.09,2.97389906]
[1766705984214,0.70660124,829.06,827.09,2.97389906]
[1766705984413,0.88483413,829.33,827.09,2.97389906]
[1766705984716,1.91284232,829.32,827.08,2.97389906]
[1766705984913,1.91284232,829.31,827.08,2.97389906]
[1766705985117,1.91284232,829.3,827.08,2.97389906]
[1766705985318,1.91284232,829.29,827.08,2.97389906]
[1766705985617,1.91284232,829.28,827.07,2.97389906]
[1766705985818,1.91284232,829.27,827.07,2.97389906]
[1766705986011,1.91284232,829.26,827.07,2.97389906]
[1766705986214,1.91284232,829.25,827.07,2.97389906]
[1766705986414,0.70548391,829.24,827.07,2.97389906]
[1766705986617,0.70548391,829.23,827.2,2.97389906]
[1766705986913,0.70548391,829.22,827.2,2.97389906]
[1766705987118,0.70548391,829.21,827.2,2.97389906]
[1766705987418,0.70548391,829.2,827.2,2.97389906]
[1766705987718,0.70548391,829.19,827.21,2.97389906]
[1766705987919,0.70548391,829.18,827.21,2.97389906]
[1766705988120,0.88483413,829.44,827.23,2.97389906]
[1766705988320,1.91409429,829.43,827.23,2.97389906]
[1766705988521,1.91409429,829.42,827.23,2.97389906]
[1766705988718,1.91409429,829.41,827.23,2.97389906]
[1766705988918,1.91409429,829.4,827.23,2.97389906]
[1766705989122,1.91409429,829.39,827.23,2.97389906]
[1766705989323,1.91409429,829.38,827.23,2.97389906]
[1766705989519,1.91409429,829.37,827.23,2.97389906]
[1766705989722,1.91409429,829.36,827.23,2.97389906]
[1766705989920,1.91409429,829.35,827.23,2.97389906]
[1766705990223,1.91409429,829.34,827.23,2.97389906]
[1766705990421,1.91409429,829.33,827.23,2.97389906]
[1766705990621,0.70693543,829.32,827.23,2.97389906]
[1766705990820,0.70693543,829.31,827.23,2.97389906]
[1766705991023,0.70693543,829.3,827.23,2.97389906]
[1766705991221,0.70693543,829.29,827.23,2.97389906]
[1766705991422,0.70693543,829.28,827.23,2.97389906]
[1766705991626,0.70693543,829.27,827.23,2.97389906]
[1766705991928,1.339,829.32,827.27,2.97389906]
[1766705992221,0.70691395,829.31,827.27,2.97389906]
[1766705992425,0.70691395,829.3,827.33,2.97389906]
[1766705992620,1.339,829.32,827.33,2.97389906]
[1766705993124,1.339,829.32,827.39,2.97389906]
[1766705994127,1.339,829.32,827.38,2.97389906]
[1766705999931,0.70701356,829.31,827.38,2.97389906]
[1766706000134,1.339,829.32,827.37,2.97389906]
[1766706000431,0.70708413,829.31,827.37,2.97389906]
[1766706000628,0.70708413,829.3,827.23,2.97389906]
[1766706000935,0.70708413,829.29,827.23,2.97389906]
[1766706001234,0.70708413,829.28,827.23,2.97389906]
[1766706001433,1.9143224,829.27,827.11,2.97389906]
[1766706001734,1.9143224,829.26,827.11,2.97389906]
[1766706001934,1.9143224,829.25,827.11,2.97389906]
[1766706002232,1.9143224,829.24,827.11,2.97389906]
[1766706002430,1.9143224,829.23,827.11,2.97389906]
[1766706002633,1.9143224,829.22,827.11,2.97389906]
[1766706002829,1.9143224,829.21,827.11,2.97389906]
[1766706003034,1.9143224,829.2,827.12,2.97389906]
[1766706003334,0.70708413,829.19,827.12,2.97389906]
[1766706003534,0.88483413,829.31,827.06,0.21009735]
[1766706003535,0.70708413,829.18,827.13,2.97389906]
[1766706003735,0.70708413,829.17,827.13,2.97389906]
[1766706003930,0.70708413,829.16,827.13,2.97389906]
[1766706004129,0.70708413,829.15,827.13,2.97389906]
[1766706004335,0.70708413,829.14,827.13,2.97389906]
[1766706004530,0.70708413,829.13,827.13,2.97389906]
[1766706004836,0.70708413,829.12,827.13,2.97389906]
[1766706005030,0.70708413,829.11,827.13,2.97389906]
[1766706005234,0.70708413,829.1,827.13,2.97389906]
[1766706005532,0.70708413,829.09,827.14,2.97389906]
[1766706005732,0.70708413,829.08,827.14,2.97389906]
[1766706005932,0.70708413,829.07,827.14,2.97389906]
[1766706006134,0.70708413,829.06,827.14,2.97389906]
[1766706006435,0.70708413,829.05,827.14,2.97389906]
[1766706006632,0.70708413,829.04,827.14,2.97389906]
[1766706006834,0.70708413,829.03,827.14,2.97389906]
[1766706007040,0.88483413,829.3,827.14,2.97389906]
[1766706007338,1.91423359,829.29,827.14,2.97389906]
[1766706007533,1.91423359,829.28,827.14,2.97389906]
[1766706007736,1.91423359,829.27,827.14,2.97389906]
[1766706007935,1.91423359,829.26,827.14,2.97389906]
[1766706008237,1.339,829.32,827.14,2.97389906]
[1766706008238,1.91423359,829.25,827.14,2.97389906]
[1766706008439,1.91423359,829.24,827.14,2.97389906]
[1766706008635,1.91423359,829.23,827.15,2.97389906]
[1766706008837,1.91423359,829.22,827.15,2.97389906]
[1766706009038,0.88483413,829.31,827.15,2.97389906]
[1766706009039,1.91423359,829.21,827.15,2.97389906]
[1766706009339,1.91423359,829.2,827.15,2.97389906]
[1766706009536,0.7069039,829.19,827.15,2.97389906]
[1766706009734,0.7069039,829.18,827.3,2.97389906]
[1766706009939,1.339,829.32,827.3,2.97389906]
[1766706010136,0.70721667,829.31,827.3,2.97389906]
[1766706010340,0.70721667,829.3,827.36,2.97389906]
[1766706010540,0.70721667,829.29,827.36,2.97389906]
[1766706010740,0.70721667,829.28,827.4,2.97389906]
[1766706010938,0.70721667,829.27,827.4,2.97389906]
[1766706011133,1.339,829.32,827.4,2.97389906]
[1766706011338,1.339,829.32,827.47,2.97389906]
[1766706012136,1.339,829.32,827.6,2.97389906]
[1766706013042,1.339,829.32,827.64,2.97389906]
[1766706014043,1.339,829.32,827.76,2.97389906]
[1766706014542,1.339,829.32,827.81,2.97389906]
[1766706015548,1.339,829.32,827.8,2.97389906]
[1766706016347,1.339,829.32,827.5,4.16345869]
[1766706016348,1.339,829.32,827.78,2.97389906]
[1766706016744,1.339,829.32,827.77,2.97389906]
[1766706017641,1.339,829.32,827.76,2.97389906]
[1766706017846,1.339,829.32,827.52,2.97389906]
[1766706018844,1.339,829.32,827.51,2.97389906]
[1766706020051,1.339,829.32,827.53,2.97389906]
[1766706021049,1.339,829.32,827.52,2.97389906]
[1766706021547,1.339,829.32,827.53,2.97389906]
[1766706024551,1.339,829.32,827.54,2.97389906]
[1766706026258,1.339,829.32,827.53,2.97389906]
[1766706028959,0.88303142,829.7,827.53,2.97389906]
[1766706029158,1.91410291,829.69,827.53,2.97389906]
[1766706029360,1.91410291,829.68,827.54,2.97389906]
[1766706029563,1.91410291,829.67,827.54,2.97389906]
[1766706029859,1.91410291,829.66,827.54,2.97389906]
[1766706030159,1.91410291,829.65,827.54,2.97389906]
[1766706030360,1.91410291,829.64,827.54,2.97389906]
[1766706030558,1.91410291,829.63,827.54,2.97389906]
[1766706030760,1.91410291,829.62,827.54,2.97389906]
[1766706031063,0.70735702,829.61,827.57,2.97389906]
[1766706031263,0.70735702,829.6,827.57,2.97389906]
[1766706031463,0.70735702,829.59,827.64,2.97389906]
[1766706031660,0.70735702,829.58,827.64,2.97389906]
[1766706031863,1.91399812,829.57,827.55,2.97389906]
[1766706032065,1.91399812,829.56,827.55,2.97389906]
[1766706032360,0.88303142,829.62,827.18,4.16345869]
[1766706032361,1.91399812,829.55,827.48,2.97389906]
[1766706032577,1.91399812,829.54,827.48,2.97389906]
[1766706032764,1.91399812,829.53,827.48,2.97389906]
[1766706032964,1.91399812,829.52,827.48,2.97389906]
[1766706033161,1.91399812,829.51,827.39,2.97389906]
[1766706033359,1.91399812,829.5,827.39,2.97389906]
[1766706033560,1.91399812,829.49,827.39,2.97389906]
[1766706033761,1.91399812,829.48,827.41,2.97389906]
[1766706033965,0.70735702,829.47,827.41,2.97389906]
[1766706034161,1.9143207,829.46,827.41,2.97389906]
[1766706034366,1.91433646,829.45,827.39,2.97389906]
[1766706034566,1.91433646,829.44,827.39,2.97389906]
[1766706034763,1.91433646,829.43,827.39,2.97389906]
[1766706035063,1.91433646,829.42,827.39,2.97389906]
[1766706035261,1.91433646,829.41,827.39,2.97389906]
[1766706035467,1.91433646,829.4,827.39,2.97389906]
[1766706035663,1.91433646,829.39,827.39,2.97389906]
[1766706035864,0.70735702,829.38,827.39,2.97389906]
[1766706036163,0.70735702,829.37,827.39,2.97389906]
[1766706036368,0.70735702,829.36,827.41,2.97389906]
[1766706036668,0.70735702,829.35,827.41,2.97389906]
[1766706036970,1.179,829.53,827.44,2.97389906]
[1766706037169,1.91440651,829.52,827.44,2.97389906]
[1766706037466,1.91440651,829.51,827.5,2.97389906]
[1766706037766,1.91440651,829.5,828.11,1.79766107]
[1766706037967,0.70758075,829.49,828.11,1.79766107]
[1766706038169,0.70758075,829.48,828.11,1.79766107]
[1766706038366,0.70758075,829.47,828.11,1.79766107]
[1766706038565,0.70758075,829.46,828.14,1.79766107]
[1766706038767,0.70758075,829.45,828.14,1.79766107]
[1766706038967,0.70758075,829.44,828.14,1.79766107]
[1766706039170,0.70758075,829.43,828.14,1.79766107]
[1766706039372,0.70758075,829.42,828.14,1.79766107]
[1766706039572,0.70758075,829.41,828.14,1.79766107]
[1766706039769,0.70758075,829.4,828.14,1.79766107]
[1766706040069,1.179,829.53,827.7,9.09058307]
[1766706040070,1.179,829.53,828.17,1.79766107]
[1766706040273,0.70371411,829.52,828.16,1.79766107]
[1766706040572,0.70371411,829.51,828.17,1.79766107]
[1766706040773,1.179,829.53,828.27,1.79766107]
[1766706041172,1.179,829.53,828.34,1.79766107]
[1766706041470,1.179,829.53,828.37,1.79766107]
[1766706042369,1.179,829.53,828.36,1.79766107]
[1766706042776,1.179,829.53,828.38,1.79766107]
[1766706042976,1.179,829.53,828.39,1.79766107]
[1766706043176,1.179,829.53,828.41,1.79766107]
[1766706043373,1.179,829.53,828.4,1.79766107]
[1766706044077,1.179,829.53,828.43,1.79766107]
[1766706044977,1.179,829.53,828.46,1.79766107]
[1766706046278,1.179,829.53,828.44,1.79766107]
[1766706046479,1.179,829.53,828.45,1.79766107]
[1766706049281,1.179,829.53,828.46,1.79766107]
[1766706049486,1.179,829.53,828.47,1.79766107]
[1766706050086,1.179,829.53,828.49,1.79766107]
[1766706050483,1.179,829.53,828.52,1.79766107]
[1766706051482,1.179,829.53,828.56,1.79766107]
[1766706052382,1.179,829.53,828.59,1.79766107]
[1766706052582,1.179,829.53,828.64,1.79766107]
[1766706052783,1.179,829.53,828.68,1.79766107]
[1766706053787,1.179,829.53,828.7,1.79766107]
[1766706053987,1.179,829.53,828.75,1.79766107]
[1766706055089,0.20981298,830.11,828.75,1.79766107]
[1766706055284,0.70205613,830.1,828.78,1.79766107]
[1766706055584,0.70205613,830.09,828.75,1.79766107]
[1766706055787,0.70205613,830.08,828.75,1.79766107]
[1766706055988,0.70205613,830.07,828.75,1.79766107]
[1766706056189,0.70205613,830.06,828.75,1.79766107]
[1766706056490,0.70205613,830.05,828.73,1.79766107]
[1766706056785,0.20972194,830.22,828.73,1.79766107]
[1766706056989,1.90727268,830.21,828.73,1.79766107]
[1766706057289,1.90727268,830.2,828.7,1.79766107]
[1766706057489,1.90727268,830.19,828.7,1.79766107]
[1766706057689,0.70146432,830.18,828.7,1.79766107]
[1766706057889,0.70146432,830.17,828.7,1.79766107]
[1766706058186,0.70146432,830.16,828.7,1.79766107]
[1766706058391,0.70146432,830.15,828.68,1.79766107]
[1766706058690,0.70146432,830.14,828.68,1.79766107]
[1766706058887,0.70146432,830.13,828.68,1.79766107]
[1766706059086,0.70146432,830.12,828.71,1.79766107]
[1766706059292,0.70146432,830.11,828.69,1.79766107]
[1766706059591,0.70146432,830.1,828.69,1.79766107]
[1766706059890,0.70146432,830.09,828.69,1.79766107]
[1766706060091,1.367,830.14,828.69,1.79766107]
[1766706060289,0.70029744,830.13,828.69,1.79766107]
[1766706060487,0.70029744,830.12,828.68,1.79766107]
[1766706060687,0.70029744,830.11,828.68,1.79766107]
[1766706060890,0.70029744,830.1,828.66,1.79766107]
[1766706061093,0.70029744,830.09,828.64,1.79766107]
[1766706061288,0.70029744,830.08,828.52,1.79766107]
[1766706061487,0.70029744,830.08,827.92,2.97389906]
[1766706061488,0.70029744,830.07,828.51,1.79766107]
[1766706061793,0.70029744,830.06,828.51,1.79766107]
[1766706061988,0.70029744,830.05,828.51,1.79766107]
[1766706062192,0.70029744,830.04,828.51,1.79766107]
[1766706062389,0.70029744,830.03,828.52,1.79766107]
[1766706062592,1.367,830.14,828.56,1.79766107]
[1766706062593,0.70029744,830.02,828.56,1.79766107]
[1766706062805,0.70029744,830.01,828.58,1.79766107]
[1766706062994,1.367,830.14,828.58,1.79766107]
[1766706063295,0.69982967,830.13,828.58,1.79766107]
[1766706063492,0.69982967,830.12,828.58,1.79766107]
[1766706063690,0.69982967,830.11,828.58,1.79766107]
[1766706063894,0.69982967,830.1,828.6,1.79766107]
[1766706064092,0.69982967,830.09,828.62,1.79766107]
[1766706064294,0.69982967,830.08,828.63,1.79766107]
[1766706064592,1.367,830.14,828.63,1.79766107]
[1766706064792,0.69773797,830.13,828.63,1.79766107]
[1766706064995,0.69773797,830.12,828.63,1.79766107]
[1766706065196,0.69773797,830.11,828.63,1.79766107]
[1766706065398,0.69773797,830.1,828.63,1.79766107]
[1766706065592,1.367,830.14,828.63,1.79766107]
[1766706065793,0.69761247,830.13,828.63,1.79766107]
[1766706065997,1.367,830.14,828.71,1.79766107]
[1766706066197,1.367,830.14,828.73,1.79766107]
[1766706066497,1.367,830.14,828.72,1.79766107]
[1766706067599,1.367,830.14,828.73,1.79766107]
[1766706068500,1.367,830.14,828.72,1.79766107]
[1766706068995,1.367,830.14,828.73,1.79766107]
[1766706069897,1.367,830.14,828.8,1.79766107]
[1766706070396,1.367,830.14,828.78,1.79766107]
[1766706071300,1.367,830.14,828.77,1.79766107]
[1766706072001,1.367,830.14,828.74,9.01833643]
[1766706072002,1.367,830.14,828.79,1.79766107]
[1766706072301,1.367,830.14,828.81,1.79766107]
[1766706072500,1.367,830.14,828.8,1.79766107]
[1766706073397,1.367,830.14,828.79,1.79766107]
[1766706074402,1.367,830.14,828.77,1.79766107]
[1766706075504,1.367,830.14,828.76,1.79766107]
[1766706076399,1.367,830.14,828.75,1.79766107]
[1766706077504,1.367,830.14,828.72,1.79766107]
[1766706078401,1.367,830.14,828.73,1.79766107]
[1766706079202,1.367,830.14,828.73,11.00326993]
[1766706079402,1.367,830.14,828.74,1.79766107]
[1766706079908,0.20970045,830.42,828.74,1.79766107]
[1766706080107,0.69578086,830.41,828.74,1.79766107]
[1766706080308,0.69578086,830.4,828.74,1.79766107]
[1766706080507,0.69578086,830.39,828.76,1.79766107]
[1766706080705,0.69578086,830.38,828.76,1.79766107]
[1766706081006,0.69578086,830.37,828.76,1.79766107]
[1766706081210,0.69578086,830.36,828.76,1.79766107]
[1766706081404,0.69578086,830.35,828.78,1.79766107]
[1766706081708,0.69578086,830.34,828.78,1.79766107]
[1766706082005,0.69578086,830.33,828.78,1.79766107]
[1766706082209,0.69578086,830.32,828.78,1.79766107]
[1766706082407,0.69578086,830.31,828.79,1.79766107]
[1766706082607,0.69578086,830.3,828.79,1.79766107]
[1766706082810,0.69578086,830.29,828.79,1.79766107]
[1766706083006,0.69578086,830.28,828.79,1.79766107]
[1766706083209,0.69578086,830.27,828.79,1.79766107]
[1766706083406,0.69578086,830.26,828.81,1.79766107]
[1766706083610,0.69578086,830.25,828.82,1.79766107]
[1766706083810,0.69578086,830.24,828.82,1.79766107]
[1766706084011,0.69578086,830.23,828.82,1.79766107]
[1766706084309,0.6974669,830.22,828.82,1.79766107]
[1766706084512,0.6974669,830.21,828.84,1.79766107]
[1766706084712,1.591,830.31,828.84,1.79766107]
[1766706084913,0.69746457,830.3,828.84,1.79766107]
[1766706085112,0.69746457,830.29,828.85,1.79766107]
[1766706085310,0.69746457,830.28,828.9,1.79766107]
[1766706085514,0.69746457,830.27,828.9,1.79766107]
[1766706085812,0.69746457,830.26,828.9,1.79766107]
[1766706086012,0.69746457,830.25,828.9,1.79766107]
[1766706086215,0.69746457,830.24,828.9,1.79766107]
[1766706086414,0.69746457,830.23,828.91,1.79766107]
[1766706086612,1.591,830.31,828.91,1.79766107]
[1766706086816,0.69427052,830.3,828.91,1.79766107]
[1766706087115,0.69427052,830.29,828.91,1.79766107]
[1766706087312,0.69427052,830.28,828.92,1.79766107]
[1766706087517,0.69427052,830.27,828.92,1.79766107]
[1766706087813,0.69427052,830.26,828.92,1.79766107]
[1766706088116,0.69427052,830.25,828.92,1.79766107]
[1766706088316,0.69427052,830.24,828.92,1.79766107]
[1766706088515,0.69427052,830.23,828.93,1.79766107]
[1766706088711,0.69427052,830.22,828.93,1.79766107]
[1766706088918,1.591,830.31,828.93,1.79766107]
[1766706089118,0.69463261,830.3,828.93,1.79766107]
[1766706089318,0.69463261,830.29,828.94,1.79766107]
[1766706089613,0.69463261,830.28,828.94,1.79766107]
[1766706089817,0.69463261,830.27,828.94,1.79766107]
[1766706090011,0.69463261,830.26,828.94,1.79766107]
[1766706090216,0.69463261,830.25,828.94,1.79766107]
[1766706090411,0.69463261,830.24,828.95,1.79766107]
[1766706090614,0.69463261,830.23,828.95,1.79766107]
[1766706090813,0.69463261,830.22,828.95,1.79766107]
[1766706091015,0.69463261,830.21,828.95,1.79766107]
[1766706091215,1.591,830.31,828.95,1.79766107]
[1766706091418,1.591,830.31,828.36,2.97389906]
[1766706091419,0.69512734,830.3,828.97,1.79766107]
[1766706091620,0.69512734,830.29,828.97,1.79766107]
[1766706091817,0.69512734,830.28,828.97,1.79766107]
[1766706092021,0.69512734,830.27,828.95,1.79766107]
[1766706092317,0.69512734,830.26,828.97,1.79766107]
[1766706092518,0.69512734,830.25,828.97,1.79766107]
[1766706092721,0.69512734,830.24,828.97,1.79766107]
[1766706093016,0.69512734,830.23,828.97,1.79766107]
[1766706093320,0.69512734,830.22,828.98,1.79766107]
[1766706093519,0.69512734,830.21,829.0,1.79766107]
[1766706093718,0.69512734,830.2,829.0,1.79766107]
[1766706093923,0.69512734,830.19,829.0,1.79766107]
[1766706094218,0.69512734,830.18,829.0,1.79766107]
[1766706094423,1.591,830.31,829.02,1.79766107]
[1766706094722,0.69589395,830.3,829.02,1.79766107]
[1766706094919,0.69589395,830.29,829.02,1.79766107]
[1766706095120,0.69589395,830.28,829.02,1.79766107]
[1766706095320,0.69589395,830.27,829.05,1.79766107]
[1766706095522,0.69589395,830.26,829.05,1.79766107]
[1766706095721,0.69589395,830.25,829.05,1.79766107]
[1766706095921,0.69589395,830.24,829.05,1.79766107]
[1766706096120,0.69589395,830.23,829.05,1.79766107]
[1766706096420,0.69589395,830.22,829.08,1.79766107]
[1766706096627,0.69589395,830.21,829.08,1.79766107]
[1766706096927,0.69589395,830.2,829.08,1.79766107]
[1766706097120,0.69589395,830.19,829.08,1.79766107]
[1766706097425,0.69589395,830.18,829.1,1.79766107]
[1766706097623,0.69589395,830.17,829.1,1.79766107]
[1766706097821,1.463,830.18,829.1,1.79766107]
[1766706098026,0.69700046,830.17,829.1,1.79766107]
[1766706098224,1.463,830.18,829.1,1.79766107]
[1766706098421,1.463,830.18,829.12,1.79766107]
[1766706099326,1.463,830.18,829.14,1.79766107]
[1766706100326,1.463,830.18,829.15,1.79766107]
[1766706101527,1.463,830.18,829.14,1.79766107]
[1766706102227,0.69740074,830.17,829.14,1.79766107]
[1766706102429,0.69740074,830.16,829.04,1.79766107]
[1766706102627,0.69740074,830.15,829.04,1.79766107]
[1766706102825,0.69740074,830.14,829.04,1.79766107]
[1766706103129,0.69740074,830.13,829.04,1.79766107]
[1766706103329,0.69740074,830.12,829.04,1.79766107]
[1766706103527,0.69740074,830.11,829.04,1.79766107]
[1766706103725,0.69740074,830.1,829.04,1.79766107]
[1766706103925,0.69740074,830.09,829.03,1.79766107]
[1766706104225,0.69740074,830.08,829.03,1.79766107]
[1766706104429,0.69740074,830.07,829.04,1.79766107]
[1766706104727,0.69740074,830.06,829.04,1.79766107]
[1766706104930,1.463,830.18,829.04,1.79766107]
[1766706105127,0.69748183,830.17,829.04,1.79766107]
[1766706105427,0.69748183,830.16,829.04,1.79766107]
[1766706105628,0.69748183,830.15,829.04,1.79766107]
[1766706105927,0.69748183,830.14,829.04,1.79766107]
[1766706106134,0.69748183,830.13,829.04,1.79766107]
[1766706106436,0.69748183,830.12,829.05,1.79766107]
[1766706106632,0.69748183,830.11,829.08,1.79766107]
[1766706106831,0.69748183,830.1,829.08,1.79766107]
[1766706107031,0.69748183,830.1,828.25,0.01440948]
[1766706107032,1.90327655,830.09,828.95,1.79766107]
[1766706107234,1.90327655,830.08,828.96,1.79766107]
[1766706107435,1.90327655,830.07,828.95,1.79766107]
[1766706107636,1.90327655,830.06,828.96,1.79766107]
[1766706107933,1.90327655,830.05,828.96,1.79766107]
[1766706108133,1.90327655,830.04,828.88,1.79766107]
[1766706108334,1.90327655,830.03,828.88,1.79766107]
[1766706108534,1.90327655,830.02,828.83,1.79766107]
[1766706108735,1.90327655,830.01,828.83,1.79766107]
[1766706108932,1.90327655,830.01,828.24,2.97389906]
[1766706108933,1.90327655,830.0,828.84,1.79766107]
[1766706109136,1.90327655,829.99,828.84,1.79766107]
[1766706109335,1.90327655,829.98,828.83,1.79766107]
[1766706109539,0.88303142,830.1,828.83,1.79766107]
[1766706109540,1.90327655,829.97,828.83,1.79766107]
[1766706109740,1.90327655,829.96,828.83,1.79766107]
[1766706110036,1.90327655,829.95,828.83,1.79766107]
[1766706110239,0.69748183,829.94,828.83,1.79766107]
[1766706110439,0.69748183,829.93,828.83,1.79766107]
[1766706110635,0.69748183,829.92,828.83,1.79766107]
[1766706110840,0.69748183,829.91,828.83,1.79766107]
[1766706111035,0.69748183,829.9,828.83,1.79766107]
[1766706111239,0.69748183,829.89,828.83,1.79766107]
[1766706111440,0.69748183,829.88,828.82,1.79766107]
[1766706111637,0.69748183,829.87,828.82,1.79766107]
[1766706111840,0.69748183,829.86,828.82,1.79766107]
[1766706112037,0.88303142,830.13,828.82,1.79766107]
[1766706112244,2.7807292,830.12,828.81,1.79766107]
[1766706112537,1.89769778,830.11,828.8,1.79766107]
[1766706112842,1.89769778,830.1,828.81,1.79766107]
[1766706113143,1.89769778,830.09,828.81,1.79766107]
[1766706113342,0.88303142,830.14,828.22,2.97389906]
[1766706113343,1.89769778,830.08,828.8,1.79766107]
[1766706113644,1.89769778,830.07,828.81,1.79766107]
[1766706113843,1.89769778,830.06,828.82,1.79766107]
[1766706114042,1.89769778,830.05,828.82,1.79766107]
[1766706114238,1.89769778,830.04,828.82,1.79766107]
[1766706114445,0.69170707,830.03,828.85,1.79766107]
[1766706114745,0.69170707,830.02,828.85,1.79766107]
[1766706114943,0.69170707,830.01,828.85,1.79766107]
[1766706115144,0.69170707,830.0,828.84,1.79766107]
[1766706115344,0.69170707,829.99,828.85,1.79766107]
[1766706115545,0.69170707,829.98,828.84,1.79766107]
[1766706115745,0.69170707,829.97,828.84,1.79766107]
[1766706116042,0.69170707,829.96,828.84,1.79766107]
[1766706116246,0.69170707,829.95,828.84,1.79766107]
[1766706116447,0.976,830.08,828.84,1.79766107]
[1766706116640,1.89698187,830.07,828.84,1.79766107]
[1766706116942,0.69106364,830.06,828.84,1.79766107]
[1766706117142,0.69106364,830.05,828.84,1.79766107]
[1766706117343,0.69106364,830.04,828.83,1.79766107]
[1766706117540,0.69106364,830.03,828.83,1.79766107]
[1766706117743,0.69106364,830.02,828.83,1.79766107]
[1766706117942,0.69106364,830.01,828.83,1.79766107]
[1766706118145,0.69106364,830.0,828.83,1.79766107]
[1766706118343,0.69106364,829.99,828.83,1.79766107]
[1766706118641,0.69106364,829.98,828.83,1.79766107]
[1766706118846,0.69106364,829.97,828.83,1.79766107]
[1766706119046,0.69106364,829.96,828.83,1.79766107]
[1766706119247,0.976,830.08,828.83,1.79766107]
[1766706119546,1.89692207,830.07,828.83,1.79766107]
[1766706119743,0.69100384,830.06,828.83,1.79766107]
[1766706120047,0.69100384,830.05,828.83,1.79766107]
[1766706120242,0.69100384,830.04,828.83,1.79766107]
[1766706120444,0.69100384,830.03,828.83,1.79766107]
[1766706120643,1.8969994,830.02,828.77,1.79766107]
[1766706120842,0.69100384,830.01,828.77,1.79766107]
[1766706121046,0.69100384,830.0,828.77,1.79766107]
[1766706121241,0.69100384,829.99,828.77,1.79766107]
[1766706121444,0.69100384,829.98,828.77,1.79766107]
[1766706121647,0.69100384,829.97,828.73,1.79766107]
[1766706121949,1.89706119,829.96,828.69,1.79766107]
[1766706122249,1.89706119,829.95,828.67,1.79766107]
[1766706122449,1.89706119,829.94,828.66,1.79766107]
[1766706122650,0.69100384,829.93,828.66,1.79766107]
[1766706122850,0.69100384,829.92,828.68,1.79766107]
[1766706123048,0.69100384,829.91,828.68,1.79766107]
[1766706123247,0.69100384,829.9,828.67,1.79766107]
[1766706123450,0.69100384,829.89,828.66,1.79766107]
[1766706123652,0.69100384,829.88,828.66,1.79766107]
[1766706123854,0.69100384,829.87,828.68,1.79766107]
[1766706124050,0.69100384,829.86,828.68,1.79766107]
[1766706124354,0.976,830.08,828.67,1.79766107]
[1766706124555,1.89646607,830.07,828.67,1.79766107]
[1766706124850,1.89646607,830.06,828.67,1.79766107]
[1766706125054,1.89646607,830.05,828.67,1.79766107]
[1766706125256,1.89646607,830.04,828.67,1.79766107]
[1766706125454,1.89646607,830.03,828.66,1.79766107]
[1766706125653,0.976,830.08,828.66,1.79766107]
[1766706125654,1.89646607,830.02,828.66,1.79766107]
[1766706125854,1.89646607,830.01,828.66,1.79766107]
[1766706126051,1.89646607,830.0,828.66,1.79766107]
[1766706126256,1.89646607,829.99,828.66,1.79766107]
[1766706126553,1.89646607,829.98,828.66,1.79766107]
[1766706126757,0.69035763,829.97,828.66,1.79766107]
[1766706126957,0.69035763,829.96,828.66,1.79766107]
[1766706127154,0.69035763,829.95,828.66,1.79766107]
[1766706127452,0.69035763,829.94,828.66,1.79766107]
[1766706127656,0.69035763,829.93,828.66,1.79766107]
[1766706127853,0.69035763,829.92,828.66,1.79766107]
[1766706128056,0.69035763,829.91,828.66,1.79766107]
[1766706128256,0.69035763,829.9,828.65,1.79766107]
[1766706128456,0.69035763,829.89,828.65,1.79766107]
[1766706128652,0.69035763,829.88,828.65,1.79766107]